[Event "Late-Titled-Tuesday-Blitz-February-06-2024"]
[Site "Chess.com"]
[Date "2024.02.06"]
[Round "8"]
[White "DanielNaroditsky"]
[Black "jefferyx"]
[Result "1/2-1/2"]
[WhiteElo "3203"]
[BlackElo "3002"]
[TimeControl "180+1"]
[EndTime "15:27:55 PST"]
[Termination "Game drawn by agreement"]

1. e4 {[%clk 0:03:00.9]} 1... c5 {[%clk 0:03:00]} 2. c3 {[%clk 0:03:00.8]} 2...
e6 {[%clk 0:03:00.2]} 3. d4 {[%clk 0:03:00.9]} 3... cxd4 {[%clk 0:03:01.1]} 4.
cxd4 {[%clk 0:03:01.2]} 4... d5 {[%clk 0:03:01.7]} 5. e5 {[%clk 0:03:00.3]} 5...
Nc6 {[%clk 0:03:02]} 6. Nf3 {[%clk 0:02:50.8]} 6... Nge7 {[%clk 0:03:02.4]} 7.
Nc3 {[%clk 0:02:38.7]} 7... Nf5 {[%clk 0:03:02.6]} 8. Bb5 {[%clk 0:02:39.1]}
8... Bd7 {[%clk 0:03:01.9]} 9. O-O {[%clk 0:02:37.5]} 9... Qb6 {[%clk
0:02:55.8]} 10. a4 {[%clk 0:02:24.2]} 10... a6 {[%clk 0:02:53.9]} 11. a5 {[%clk
0:02:17.9]} 11... Qa7 {[%clk 0:02:31.9]} 12. Bxc6 {[%clk 0:01:59.2]} 12... Bxc6
{[%clk 0:02:32.8]} 13. Na4 {[%clk 0:01:58.6]} 13... Be7 {[%clk 0:02:21]} 14. Nb6
{[%clk 0:01:57.7]} 14... Rd8 {[%clk 0:02:21.3]} 15. Bg5 {[%clk 0:01:52.8]} 15...
Bxg5 {[%clk 0:02:04]} 16. Nxg5 {[%clk 0:01:53.7]} 16... Qb8 {[%clk 0:02:03.1]}
17. Ra3 {[%clk 0:01:48.5]} 17... Qc7 {[%clk 0:01:54.7]} 18. Qd2 {[%clk
0:01:15.9]} 18... Qe7 {[%clk 0:01:52.2]} 19. Nf3 {[%clk 0:01:00.3]} 19... O-O
{[%clk 0:01:50.4]} 20. Rc1 {[%clk 0:01:00.5]} 20... Nh4 {[%clk 0:01:38]} 21.
Nxh4 {[%clk 0:00:56.5]} 21... Qxh4 {[%clk 0:01:37.9]} 22. Rh3 {[%clk 0:00:55]}
22... Qe7 {[%clk 0:01:33.7]} 23. Rcc3 {[%clk 0:00:52.3]} 23... f6 {[%clk
0:01:29.7]} 24. exf6 {[%clk 0:00:44]} 24... Rxf6 {[%clk 0:01:29.3]} 25. Rhe3
{[%clk 0:00:41.1]} 25... Qb4 {[%clk 0:01:22.9]} 26. Rc2 {[%clk 0:00:36.8]} 26...
Qxd2 {[%clk 0:01:13.2]} 27. Rxd2 {[%clk 0:00:37.7]} 27... Kf7 {[%clk 0:01:13.4]}
28. f3 {[%clk 0:00:36.9]} 28... Ke7 {[%clk 0:01:13.8]} 29. Kf2 {[%clk
0:00:33.4]} 29... Kd6 {[%clk 0:01:14.2]} 30. h4 {[%clk 0:00:28.7]} 30... Rdf8
{[%clk 0:01:14]} 31. Rde2 {[%clk 0:00:24.8]} 31... Bb5 {[%clk 0:01:12.4]} 32.
Re1 {[%clk 0:00:23.4]} 32... Bc6 {[%clk 0:01:11.4]} 33. R1e2 {[%clk 0:00:22.5]}
33... Bb5 {[%clk 0:01:11.4]} 34. Re1 {[%clk 0:00:23.2]} 34... Bc6 {[%clk
0:01:11.9]} 35. g4 {[%clk 0:00:19.3]} 35... Bd7 {[%clk 0:01:00.8]} 36. Kg3
{[%clk 0:00:17.8]} 36... Rf4 {[%clk 0:01:00.2]} 37. Rd1 {[%clk 0:00:13.3]}
1/2-1/2

[Event "Late-Titled-Tuesday-Blitz-February-06-2024"]
[Site "Chess.com"]
[Date "2024.02.06"]
[Round "8"]
[White "Resignify"]
[Black "stepanosinovsky"]
[Result "0-1"]
[WhiteElo "2323"]
[BlackElo "2386"]
[TimeControl "180+1"]
[EndTime "15:27:56 PST"]
[Termination "stepanosinovsky won by checkmate"]

1. e4 {[%clk 0:03:00.9]} 1... e5 {[%clk 0:02:59.9]} 2. Nf3 {[%clk 0:03:00.7]}
2... Nc6 {[%clk 0:03:00.6]} 3. Bc4 {[%clk 0:03:00.8]} 3... Nf6 {[%clk 0:03:01]}
4. d3 {[%clk 0:03:01]} 4... Be7 {[%clk 0:02:58.5]} 5. c3 {[%clk 0:03:01]} 5...
O-O {[%clk 0:02:57]} 6. O-O {[%clk 0:03:01]} 6... Kh8 {[%clk 0:02:54.6]} 7. Re1
{[%clk 0:02:52.5]} 7... d6 {[%clk 0:02:48.4]} 8. Nbd2 {[%clk 0:02:48.8]} 8...
Ng8 {[%clk 0:02:38.4]} 9. d4 {[%clk 0:02:37.6]} 9... f5 {[%clk 0:02:18.9]} 10.
exf5 {[%clk 0:02:36.7]} 10... Bxf5 {[%clk 0:02:12]} 11. dxe5 {[%clk 0:02:08.4]}
11... dxe5 {[%clk 0:02:05.6]} 12. Nxe5 {[%clk 0:02:05.1]} 12... Nxe5 {[%clk
0:02:02.9]} 13. Rxe5 {[%clk 0:02:04.6]} 13... Nh6 {[%clk 0:01:54.3]} 14. h3
{[%clk 0:01:37.9]} 14... Bd6 {[%clk 0:01:22.4]} 15. Re1 {[%clk 0:01:37.6]} 15...
Bxh3 {[%clk 0:01:19.8]} 16. gxh3 {[%clk 0:01:28.4]} 16... Qg5+ {[%clk
0:01:18.1]} 17. Kf1 {[%clk 0:01:12.3]} 17... Rxf2+ {[%clk 0:01:08]} 18. Kxf2
{[%clk 0:01:11.1]} 18... Bc5+ {[%clk 0:00:34.8]} 19. Kf1 {[%clk 0:00:09.7]}
19... Qg1+ {[%clk 0:00:33.4]} 20. Ke2 {[%clk 0:00:08.8]} 20... Qe3+ {[%clk
0:00:33.8]} 21. Kf1 {[%clk 0:00:08.4]} 21... Qf2# {[%clk 0:00:34]} 0-1

[Event "Late-Titled-Tuesday-Blitz-February-06-2024"]
[Site "Chess.com"]
[Date "2024.02.06"]
[Round "8"]
[White "nindjaxx8"]
[Black "CaspiIsrael"]
[Result "0-1"]
[WhiteElo "2566"]
[BlackElo "2693"]
[TimeControl "180+1"]
[EndTime "15:27:57 PST"]
[Termination "CaspiIsrael won by resignation"]

1. d4 {[%clk 0:03:00.9]} 1... f5 {[%clk 0:02:59.6]} 2. c4 {[%clk 0:03:00.4]}
2... Nf6 {[%clk 0:03:00]} 3. Nc3 {[%clk 0:03:00.4]} 3... g6 {[%clk 0:03:00.6]}
4. Nf3 {[%clk 0:03:00.6]} 4... Bg7 {[%clk 0:03:01.2]} 5. Bf4 {[%clk 0:03:01.2]}
5... O-O {[%clk 0:03:01]} 6. e3 {[%clk 0:03:01.9]} 6... d6 {[%clk 0:03:01.4]} 7.
Be2 {[%clk 0:02:56.7]} 7... Nc6 {[%clk 0:03:01.3]} 8. O-O {[%clk 0:02:53.3]}
8... Re8 {[%clk 0:02:53.2]} 9. Bg3 {[%clk 0:02:51.9]} 9... e6 {[%clk 0:02:49.7]}
10. Qc2 {[%clk 0:02:51.1]} 10... Bd7 {[%clk 0:02:49.3]} 11. Rad1 {[%clk
0:02:51.6]} 11... Ne7 {[%clk 0:02:42.4]} 12. b4 {[%clk 0:02:47.6]} 12... a5
{[%clk 0:02:41.8]} 13. a3 {[%clk 0:02:41.1]} 13... h6 {[%clk 0:02:40.3]} 14. Nd2
{[%clk 0:02:34.8]} 14... g5 {[%clk 0:02:39.5]} 15. h3 {[%clk 0:02:31.4]} 15...
Ng6 {[%clk 0:02:31.1]} 16. Bd3 {[%clk 0:02:26.2]} 16... Nh5 {[%clk 0:02:28.4]}
17. Ne2 {[%clk 0:02:16.9]} 17... Nxg3 {[%clk 0:02:26.7]} 18. fxg3 {[%clk
0:02:15.9]} 18... Ne7 {[%clk 0:02:22.8]} 19. d5 {[%clk 0:02:09.4]} 19... exd5
{[%clk 0:02:05.7]} 20. cxd5 {[%clk 0:02:10.3]} 20... axb4 {[%clk 0:02:06.1]} 21.
axb4 {[%clk 0:02:11.2]} 21... Ra3 {[%clk 0:02:00.9]} 22. Nc4 {[%clk 0:02:04.6]}
22... Ra7 {[%clk 0:01:52.2]} 23. Qb1 {[%clk 0:01:58.2]} 23... Qa8 {[%clk
0:01:50.1]} 24. Nd4 {[%clk 0:01:53]} 24... Bxd4 {[%clk 0:01:47.9]} 25. exd4
{[%clk 0:01:53.6]} 25... Rf8 {[%clk 0:01:46.3]} 26. Ne3 {[%clk 0:01:47.9]} 26...
Qc8 {[%clk 0:01:41.4]} 27. Qc1 {[%clk 0:01:38.7]} 27... Rf7 {[%clk 0:01:40.2]}
28. Qd2 {[%clk 0:01:37.7]} 28... Ra3 {[%clk 0:01:35.7]} 29. Qe2 {[%clk
0:01:37.4]} 29... Qa8 {[%clk 0:01:32.1]} 30. Qh5 {[%clk 0:01:35.9]} 30... Kg7
{[%clk 0:01:31.8]} 31. Rfe1 {[%clk 0:01:31.3]} 31... Qa7 {[%clk 0:01:30.1]} 32.
Kh1 {[%clk 0:01:25]} 32... Qxd4 {[%clk 0:01:18]} 33. Nxf5+ {[%clk 0:01:03.1]}
33... Bxf5 {[%clk 0:01:16.9]} 34. Bxf5 {[%clk 0:01:02.6]} 34... Nxf5 {[%clk
0:01:17]} 35. Kh2 {[%clk 0:00:50.5]} 35... Rd3 {[%clk 0:01:07.6]} 36. Ra1 {[%clk
0:00:16.1]} 36... Nxg3 {[%clk 0:01:03.5]} 0-1

[Event "Late-Titled-Tuesday-Blitz-February-06-2024"]
[Site "Chess.com"]
[Date "2024.02.06"]
[Round "8"]
[White "BozeKat"]
[Black "Ze-Pequeno"]
[Result "1/2-1/2"]
[WhiteElo "2002"]
[BlackElo "2118"]
[TimeControl "180+1"]
[EndTime "15:27:59 PST"]
[Termination "Game drawn by repetition"]

1. d4 {[%clk 0:03:00.9]} 1... Nf6 {[%clk 0:02:57.4]} 2. Bg5 {[%clk 0:03:00.3]}
2... d5 {[%clk 0:02:57.4]} 3. Bxf6 {[%clk 0:02:59.7]} 3... exf6 {[%clk
0:02:57.7]} 4. e3 {[%clk 0:03:00.4]} 4... c6 {[%clk 0:02:58.1]} 5. c4 {[%clk
0:02:58.9]} 5... dxc4 {[%clk 0:02:57.9]} 6. Bxc4 {[%clk 0:02:58.6]} 6... Bd6
{[%clk 0:02:58.8]} 7. Nf3 {[%clk 0:02:55]} 7... O-O {[%clk 0:02:58.8]} 8. h3
{[%clk 0:02:53.2]} 8... f5 {[%clk 0:02:58.6]} 9. O-O {[%clk 0:02:51.8]} 9... Nd7
{[%clk 0:02:58.4]} 10. Nbd2 {[%clk 0:02:42.7]} 10... Nf6 {[%clk 0:02:58.5]} 11.
Bd3 {[%clk 0:02:39.2]} 11... Qe7 {[%clk 0:02:44.6]} 12. Nc4 {[%clk 0:02:37.6]}
12... Bc7 {[%clk 0:02:44.5]} 13. Nce5 {[%clk 0:02:35.2]} 13... g6 {[%clk
0:02:42.2]} 14. a3 {[%clk 0:02:30.3]} 14... Be6 {[%clk 0:02:41.7]} 15. b4 {[%clk
0:02:29.1]} 15... a6 {[%clk 0:02:42.2]} 16. Rb1 {[%clk 0:02:21.7]} 16... Rfd8
{[%clk 0:02:39.8]} 17. Qc2 {[%clk 0:02:11.1]} 17... Rac8 {[%clk 0:02:38.7]} 18.
Rfc1 {[%clk 0:02:04]} 18... Bd6 {[%clk 0:02:32.5]} 19. Qe2 {[%clk 0:01:59.7]}
19... Kg7 {[%clk 0:02:30.4]} 20. Nc4 {[%clk 0:01:55.4]} 20... Bc7 {[%clk
0:02:29.1]} 21. Nfe5 {[%clk 0:01:53.7]} 21... Bd5 {[%clk 0:02:27.1]} 22. a4
{[%clk 0:01:34]} 22... Re8 {[%clk 0:02:26]} 23. b5 {[%clk 0:01:30.5]} 23... axb5
{[%clk 0:02:12.5]} 24. axb5 {[%clk 0:01:31.4]} 24... c5 {[%clk 0:02:13.1]} 25.
b6 {[%clk 0:01:23.7]} 25... Bb8 {[%clk 0:02:12.8]} 26. Nf3 {[%clk 0:01:11.3]}
26... cxd4 {[%clk 0:02:13]} 27. Nxd4 {[%clk 0:01:06.5]} 27... Ne4 {[%clk
0:02:12.2]} 28. Nd2 {[%clk 0:01:00.7]} 28... Nc3 {[%clk 0:02:09]} 29. Rxc3
{[%clk 0:00:54.1]} 29... Rxc3 {[%clk 0:02:09.9]} 30. Bxf5 {[%clk 0:00:52.7]}
30... Qe5 {[%clk 0:01:58.4]} 31. N2f3 {[%clk 0:00:46.8]} 31... Bxf3 {[%clk
0:01:57.6]} 32. Qxf3 {[%clk 0:00:44.7]} 32... gxf5 {[%clk 0:01:48.1]} 33. Nxf5+
{[%clk 0:00:44.7]} 33... Kh8 {[%clk 0:01:48.6]} 34. Ng3 {[%clk 0:00:37.3]} 34...
Qe7 {[%clk 0:01:35.5]} 35. Rd1 {[%clk 0:00:35.3]} 35... Rec8 {[%clk 0:01:32.8]}
36. Rd4 {[%clk 0:00:31.2]} 36... Rc1+ {[%clk 0:01:32.3]} 37. Kh2 {[%clk
0:00:31.5]} 37... Rg8 {[%clk 0:01:32.8]} 38. Re4 {[%clk 0:00:27.7]} 38... Qf8
{[%clk 0:01:25.4]} 39. Ra4 {[%clk 0:00:23]} 39... Qg7 {[%clk 0:01:21.2]} 40. Rg4
{[%clk 0:00:20.4]} 40... Qf8 {[%clk 0:01:18.1]} 41. Qf6+ {[%clk 0:00:17]} 41...
Rg7 {[%clk 0:01:18.4]} 42. Rxg7 {[%clk 0:00:15.4]} 42... Qxg7 {[%clk 0:01:19.3]}
43. Qd8+ {[%clk 0:00:15.7]} 43... Qg8 {[%clk 0:01:20.2]} 44. Qf6+ {[%clk
0:00:16.2]} 44... Qg7 {[%clk 0:01:21.1]} 45. Qd8+ {[%clk 0:00:16.2]} 45... Qg8
{[%clk 0:01:21.7]} 46. Qf6+ {[%clk 0:00:16.9]} 46... Qg7 {[%clk 0:01:22.6]}
1/2-1/2

[Event "Late-Titled-Tuesday-Blitz-February-06-2024"]
[Site "Chess.com"]
[Date "2024.02.06"]
[Round "8"]
[White "IranianCheetah"]
[Black "JackRodgers"]
[Result "1-0"]
[WhiteElo "2369"]
[BlackElo "2495"]
[TimeControl "180+1"]
[EndTime "15:28:01 PST"]
[Termination "IranianCheetah won by resignation"]

1. e4 {[%clk 0:03:00.9]} 1... c5 {[%clk 0:02:59.9]} 2. Nf3 {[%clk 0:03:00.8]}
2... g6 {[%clk 0:03:00.2]} 3. d4 {[%clk 0:03:01.7]} 3... cxd4 {[%clk 0:03:01.1]}
4. Qxd4 {[%clk 0:03:02.1]} 4... Nf6 {[%clk 0:03:01.5]} 5. e5 {[%clk 0:03:03]}
5... Nc6 {[%clk 0:03:01.8]} 6. Qa4 {[%clk 0:03:03.6]} 6... Nd5 {[%clk
0:03:02.2]} 7. Qe4 {[%clk 0:03:04.3]} 7... Nb6 {[%clk 0:03:02.6]} 8. Nc3 {[%clk
0:03:03.9]} 8... Bg7 {[%clk 0:03:03]} 9. Bf4 {[%clk 0:03:04]} 9... d6 {[%clk
0:03:03.5]} 10. exd6 {[%clk 0:03:03.9]} 10... Bf5 {[%clk 0:03:04]} 11. Qe2
{[%clk 0:03:03.9]} 11... O-O {[%clk 0:02:57.3]} 12. O-O-O {[%clk 0:02:54.4]}
12... Rc8 {[%clk 0:02:52]} 13. dxe7 {[%clk 0:02:46.1]} 13... Qxe7 {[%clk
0:02:51.2]} 14. Qxe7 {[%clk 0:02:39.8]} 14... Nxe7 {[%clk 0:02:52.1]} 15. Be5
{[%clk 0:02:35.8]} 15... Bxe5 {[%clk 0:02:35.9]} 16. Nxe5 {[%clk 0:02:35.2]}
16... Ned5 {[%clk 0:02:31.6]} 17. Bd3 {[%clk 0:01:12.3]} 17... Nxc3 {[%clk
0:02:25.3]} 18. bxc3 {[%clk 0:01:05.2]} 18... Be6 {[%clk 0:02:19.9]} 19. c4
{[%clk 0:00:33.2]} 19... Nxc4 {[%clk 0:02:17.3]} 20. Bxc4 {[%clk 0:00:30.8]}
20... Bxc4 {[%clk 0:02:17.6]} 21. Rd7 {[%clk 0:00:16.7]} 21... Bxa2 {[%clk
0:02:11.4]} 22. Kb2 {[%clk 0:00:16.6]} 22... Be6 {[%clk 0:02:08.8]} 23. Rxb7
{[%clk 0:00:15.9]} 23... Rc5 {[%clk 0:02:05.9]} 24. Nd3 {[%clk 0:00:14.5]} 24...
Ra5 {[%clk 0:01:56.6]} 25. Ra1 {[%clk 0:00:13.8]} 25... Rxa1 {[%clk 0:01:56.1]}
26. Kxa1 {[%clk 0:00:14.7]} 26... a6 {[%clk 0:01:53.8]} 27. Nc5 {[%clk
0:00:10.5]} 27... Bd5 {[%clk 0:01:53.1]} 28. Ra7 {[%clk 0:00:09.9]} 28... Rc8
{[%clk 0:01:51.7]} 29. Nd7 {[%clk 0:00:08.8]} 29... Bxg2 {[%clk 0:01:47.2]} 30.
Kb2 {[%clk 0:00:06.4]} 30... Ra8 {[%clk 0:01:39.9]} 31. Rc7 {[%clk 0:00:03]}
31... a5 {[%clk 0:01:32.4]} 32. c4 {[%clk 0:00:03]} 32... a4 {[%clk 0:01:29.3]}
33. Ka3 {[%clk 0:00:03.4]} 33... Bf3 {[%clk 0:01:26.5]} 34. Nb6 {[%clk
0:00:03.5]} 34... Re8 {[%clk 0:01:24.2]} 35. Rc8 {[%clk 0:00:03.3]} 35... Rxc8
{[%clk 0:01:19.1]} 36. Nxc8 {[%clk 0:00:04.2]} 36... Bc6 {[%clk 0:01:18.6]} 37.
Ne7+ {[%clk 0:00:04]} 37... Kf8 {[%clk 0:01:18]} 38. Nxc6 {[%clk 0:00:04.9]} 1-0

[Event "Late-Titled-Tuesday-Blitz-February-06-2024"]
[Site "Chess.com"]
[Date "2024.02.06"]
[Round "8"]
[White "Zavgorodniy_Sergiy"]
[Black "Felix-Rose"]
[Result "1-0"]
[WhiteElo "2588"]
[BlackElo "2383"]
[TimeControl "180+1"]
[EndTime "15:28:02 PST"]
[Termination "Zavgorodniy_Sergiy won on time"]

1. d4 {[%clk 0:03:00.9]} 1... d5 {[%clk 0:02:59.1]} 2. c4 {[%clk 0:03:01.1]}
2... e6 {[%clk 0:02:59.5]} 3. Nf3 {[%clk 0:03:00.9]} 3... Nf6 {[%clk 0:02:59.7]}
4. e3 {[%clk 0:03:01.2]} 4... Be7 {[%clk 0:02:53.3]} 5. Nbd2 {[%clk 0:03:01.4]}
5... O-O {[%clk 0:02:53.4]} 6. Bd3 {[%clk 0:03:01.6]} 6... b6 {[%clk 0:02:52.1]}
7. O-O {[%clk 0:03:01.7]} 7... Bb7 {[%clk 0:02:52]} 8. Qe2 {[%clk 0:03:02.1]}
8... c5 {[%clk 0:02:48.4]} 9. b3 {[%clk 0:03:01.9]} 9... Nc6 {[%clk 0:02:46.6]}
10. Bb2 {[%clk 0:03:01.5]} 10... Rc8 {[%clk 0:02:35.5]} 11. Rac1 {[%clk
0:03:00.7]} 11... cxd4 {[%clk 0:02:33.9]} 12. exd4 {[%clk 0:03:01.6]} 12... Qd6
{[%clk 0:02:12.6]} 13. Rfd1 {[%clk 0:03:00.9]} 13... Rfd8 {[%clk 0:02:11.1]} 14.
h3 {[%clk 0:02:57.7]} 14... Qf4 {[%clk 0:02:09.3]} 15. g3 {[%clk 0:02:57.3]}
15... Qd6 {[%clk 0:01:55.7]} 16. Kh2 {[%clk 0:02:52.6]} 16... Bf8 {[%clk
0:01:39]} 17. c5 {[%clk 0:02:50.4]} 17... Qb8 {[%clk 0:01:27.3]} 18. a3 {[%clk
0:02:49.6]} 18... Ne7 {[%clk 0:00:59.4]} 19. b4 {[%clk 0:02:49]} 19... Ng6
{[%clk 0:00:53]} 20. Rc2 {[%clk 0:02:43]} 20... a5 {[%clk 0:00:44.6]} 21. Rdc1
{[%clk 0:02:42.2]} 21... axb4 {[%clk 0:00:44.1]} 22. axb4 {[%clk 0:02:43.1]}
22... bxc5 {[%clk 0:00:43.5]} 23. dxc5 {[%clk 0:02:38]} 23... Ba8 {[%clk
0:00:17.4]} 24. b5 {[%clk 0:02:37.9]} 24... Re8 {[%clk 0:00:07.5]} 25. c6 {[%clk
0:02:36.5]} 25... e5 {[%clk 0:00:07.6]} 26. Bf5 {[%clk 0:02:35.4]} 26... e4
{[%clk 0:00:06.5]} 27. Nd4 {[%clk 0:02:32.5]} 27... Rc7 {[%clk 0:00:03.7]} 28.
Bc3 {[%clk 0:02:24.6]} 28... Ne5 {[%clk 0:00:03.7]} 29. Ba5 {[%clk 0:02:24]}
29... Nd3 {[%clk 0:00:03.4]} 30. Bxc7 {[%clk 0:02:22]} 30... Qxc7 {[%clk
0:00:04.3]} 31. Rb1 {[%clk 0:02:19.8]} 31... Bd6 {[%clk 0:00:03.7]} 32. b6
{[%clk 0:02:18.3]} 32... Qe7 {[%clk 0:00:04.1]} 33. b7 {[%clk 0:02:16.4]} 33...
Be5 {[%clk 0:00:02.9]} 34. bxa8=Q {[%clk 0:02:14.9]} 34... Rxa8 {[%clk
0:00:02.6]} 35. Nb5 {[%clk 0:02:02]} 35... g6 {[%clk 0:00:02.5]} 36. Bd7 {[%clk
0:01:53.3]} 36... Nxd7 {[%clk 0:00:02.9]} 37. cxd7 {[%clk 0:01:54.2]} 37... Qxd7
{[%clk 0:00:03.6]} 38. Nf1 {[%clk 0:01:35.8]} 38... h5 {[%clk 0:00:03.7]} 39. h4
{[%clk 0:01:30.7]} 39... Qe7 {[%clk 0:00:01.8]} 40. Kg2 {[%clk 0:01:31.2]} 1-0

[Event "Late-Titled-Tuesday-Blitz-February-06-2024"]
[Site "Chess.com"]
[Date "2024.02.06"]
[Round "8"]
[White "Ready4abattle"]
[Black "DeArron_Fox"]
[Result "0-1"]
[WhiteElo "2316"]
[BlackElo "2497"]
[TimeControl "180+1"]
[EndTime "15:28:04 PST"]
[Termination "DeArron_Fox won by resignation"]

1. e4 {[%clk 0:03:00.9]} 1... c5 {[%clk 0:02:59.3]} 2. Nf3 {[%clk 0:03:00.9]}
2... e6 {[%clk 0:02:59.7]} 3. d4 {[%clk 0:03:01.2]} 3... cxd4 {[%clk 0:03:00.6]}
4. Nxd4 {[%clk 0:03:01.5]} 4... a6 {[%clk 0:03:01.3]} 5. Nc3 {[%clk 0:02:54.6]}
5... b5 {[%clk 0:03:01.1]} 6. f4 {[%clk 0:02:54.4]} 6... Bb7 {[%clk 0:03:01.3]}
7. a3 {[%clk 0:02:52.1]} 7... Nc6 {[%clk 0:02:56.2]} 8. Nxc6 {[%clk 0:02:50.6]}
8... Bxc6 {[%clk 0:02:57.1]} 9. Bd3 {[%clk 0:02:49.7]} 9... Bc5 {[%clk
0:02:52.9]} 10. Qf3 {[%clk 0:02:38.5]} 10... Ne7 {[%clk 0:01:32.6]} 11. Be3
{[%clk 0:02:32.3]} 11... Bxe3 {[%clk 0:01:14.9]} 12. Qxe3 {[%clk 0:02:33.2]}
12... d5 {[%clk 0:01:15]} 13. Qg3 {[%clk 0:02:19.8]} 13... dxe4 {[%clk
0:01:13.3]} 14. Nxe4 {[%clk 0:01:59.9]} 14... Nf5 {[%clk 0:01:07.9]} 15. Qf2
{[%clk 0:02:00]} 15... Qc7 {[%clk 0:00:41.5]} 16. O-O-O {[%clk 0:01:57.2]} 16...
Rd8 {[%clk 0:00:40.1]} 17. Kb1 {[%clk 0:01:54.9]} 17... Nd4 {[%clk 0:00:20.3]}
18. Rhe1 {[%clk 0:01:50.9]} 18... O-O {[%clk 0:00:07.7]} 19. Ng5 {[%clk
0:01:44.6]} 19... h6 {[%clk 0:00:05.3]} 20. Bh7+ {[%clk 0:01:32.6]} 20... Kh8
{[%clk 0:00:05.3]} 21. Rxd4 {[%clk 0:01:12.3]} 21... Rxd4 {[%clk 0:00:03.8]} 22.
Qxd4 {[%clk 0:01:10.7]} 22... hxg5 {[%clk 0:00:04]} 23. Bd3 {[%clk 0:00:57.9]}
23... Qxf4 {[%clk 0:00:03.6]} 24. Qc5 {[%clk 0:00:56.2]} 24... Rc8 {[%clk
0:00:04.2]} 25. Rf1 {[%clk 0:00:55]} 25... Qd2 {[%clk 0:00:01.9]} 26. Rxf7
{[%clk 0:00:50.7]} 26... Qd1+ {[%clk 0:00:02.4]} 27. Ka2 {[%clk 0:00:48.6]}
27... Bd5+ {[%clk 0:00:03]} 0-1

[Event "Late-Titled-Tuesday-Blitz-February-06-2024"]
[Site "Chess.com"]
[Date "2024.02.06"]
[Round "8"]
[White "xakevicius91"]
[Black "KorolDimitriy75"]
[Result "0-1"]
[WhiteElo "2564"]
[BlackElo "2399"]
[TimeControl "180+1"]
[EndTime "15:28:09 PST"]
[Termination "KorolDimitriy75 won by resignation"]

1. e4 {[%clk 0:03:00.9]} 1... c5 {[%clk 0:03:00.2]} 2. Nf3 {[%clk 0:03:00.6]}
2... d6 {[%clk 0:03:00.5]} 3. Bb5+ {[%clk 0:02:57.2]} 3... Nd7 {[%clk
0:03:00.3]} 4. c4 {[%clk 0:02:52.8]} 4... Nf6 {[%clk 0:02:59.9]} 5. Nc3 {[%clk
0:02:47.2]} 5... g6 {[%clk 0:03:00.3]} 6. h3 {[%clk 0:02:46.8]} 6... Bg7 {[%clk
0:03:00.5]} 7. d3 {[%clk 0:02:47.4]} 7... O-O {[%clk 0:03:00.3]} 8. Be3 {[%clk
0:02:48]} 8... Nb8 {[%clk 0:02:51.7]} 9. Qd2 {[%clk 0:02:47.8]} 9... Bd7 {[%clk
0:02:49.2]} 10. Bh6 {[%clk 0:02:47.2]} 10... a6 {[%clk 0:02:41.2]} 11. Bxd7
{[%clk 0:02:46.5]} 11... Qxd7 {[%clk 0:02:42.1]} 12. Bxg7 {[%clk 0:02:46.5]}
12... Kxg7 {[%clk 0:02:42.6]} 13. g4 {[%clk 0:02:47.1]} 13... b5 {[%clk
0:02:33.8]} 14. b3 {[%clk 0:02:44.9]} 14... b4 {[%clk 0:02:26]} 15. Ne2 {[%clk
0:02:41.8]} 15... Nc6 {[%clk 0:02:24.8]} 16. Ng3 {[%clk 0:02:39.5]} 16... e5
{[%clk 0:01:46.1]} 17. O-O {[%clk 0:02:34.5]} 17... Ng8 {[%clk 0:01:29.4]} 18.
Kg2 {[%clk 0:02:32.4]} 18... Nge7 {[%clk 0:01:24.6]} 19. Nh4 {[%clk 0:02:25.4]}
19... Nd4 {[%clk 0:01:10.6]} 20. f4 {[%clk 0:02:20.8]} 20... f6 {[%clk
0:01:10.7]} 21. a3 {[%clk 0:02:16.9]} 21... a5 {[%clk 0:01:09.5]} 22. Qb2 {[%clk
0:02:14.2]} 22... bxa3 {[%clk 0:00:48.5]} 23. Rxa3 {[%clk 0:02:13.6]} 23... Rfb8
{[%clk 0:00:47.7]} 24. Ne2 {[%clk 0:02:12.9]} 24... Nec6 {[%clk 0:00:46]} 25.
Nf3 {[%clk 0:02:08.7]} 25... Nxe2 {[%clk 0:00:37.4]} 26. Qxe2 {[%clk 0:02:07.5]}
26... exf4 {[%clk 0:00:37.5]} 27. g5 {[%clk 0:02:03.5]} 27... fxg5 {[%clk
0:00:27.5]} 28. Qb2+ {[%clk 0:02:01.8]} 28... Kh6 {[%clk 0:00:25.6]} 29. Rh1
{[%clk 0:01:46.4]} 29... Rf8 {[%clk 0:00:19.7]} 30. Qf2 {[%clk 0:01:36.4]} 30...
Qe6 {[%clk 0:00:18.7]} 31. Re1 {[%clk 0:01:28.7]} 31... Ne5 {[%clk 0:00:17.3]}
32. Qe2 {[%clk 0:01:17.2]} 32... g4 {[%clk 0:00:14.8]} 33. Nxe5 {[%clk
0:01:14.3]} 33... f3+ {[%clk 0:00:13.5]} 34. Nxf3 {[%clk 0:01:14.7]} 34... gxf3+
{[%clk 0:00:13.6]} 35. Qxf3 {[%clk 0:01:15.6]} 35... Rxf3 {[%clk 0:00:13.9]} 36.
Kxf3 {[%clk 0:01:16.5]} 36... Qxh3+ {[%clk 0:00:13.2]} 37. Ke2 {[%clk 0:01:17]}
37... Rf8 {[%clk 0:00:11.7]} 38. Raa1 {[%clk 0:01:15.9]} 38... Qg2+ {[%clk
0:00:10.6]} 39. Kd1 {[%clk 0:01:13.9]} 39... Rf2 {[%clk 0:00:10.6]} 40. e5
{[%clk 0:01:07]} 40... Rd2+ {[%clk 0:00:09.9]} 41. Kc1 {[%clk 0:01:07.5]} 41...
Rc2+ {[%clk 0:00:10.1]} 42. Kb1 {[%clk 0:01:08]} 42... Rb2+ {[%clk 0:00:10.5]}
43. Kc1 {[%clk 0:01:08.9]} 0-1